fUSD/lending_fUSD_20250828
["ID","MTS","AMOUNT","RATE_DAILY","PERIOD"]
[381922381,1756410634214,-500.0,0.00018822,2]
[381922382,1756410634236,-150.0,0.00018822,2]
[381922383,1756410634254,-711.0,0.00018822,2]
[381922384,1756410634269,-150.0,0.00018822,2]
[381922385,1756410634279,-200.0,0.00018822,2]
[381922386,1756410634288,-335.14518406,0.00018822,2]
[381922387,1756410634297,-1357.352783,0.00018847,2]
[381922388,1756410634306,-527.0,0.00018849,2]
[381922389,1756410634315,-151.78,0.0001885,2]
[381922390,1756410634324,-168762.80648326,0.0001886,2]
[381922391,1756410634334,-151.0,0.0001886,2]
[381922392,1756410634342,-151.0,0.0001886,2]
[381922393,1756410634351,-151.0,0.0001886,2]
[381922394,1756410634360,-294.74950979,0.00018873,2]
[381922395,1756410634369,-500.0,0.00018873,2]
[381922396,1756410634378,-500.0,0.00018973,2]
[381922397,1756410634387,-500.0,0.00018973,2]
[381922398,1756410634397,-500.33008969,0.00018973,2]
[381922399,1756410634411,-161.61662079,0.00018973,2]
[381922400,1756410634420,-500.0,0.00018973,2]
[381922401,1756410634430,-500.0,0.00018973,2]
[381922402,1756410634438,-151.78,0.0001899,2]
[381922403,1756410634447,-622.25167381,0.00019,2]
[381922404,1756410634456,-132908.97817716,0.00019,2]
[381922405,1756410634465,-2300.4307093,0.00019,2]
[381922406,1756410634474,-151.0,0.00019,2]
[381922407,1756410634483,-151.0,0.00019,2]
[381922408,1756410634493,-151.0,0.00019,2]
[381922409,1756410634502,-151.0,0.00019,2]
[381922410,1756410634511,-280.04251978,0.00019096,2]
[381922411,1756410634523,-500.0,0.00019096,2]
[381922412,1756410634532,-500.0,0.00019096,2]
[381922413,1756410634541,-500.0,0.00019096,2]
[381922414,1756410634550,-500.0,0.00019096,2]
[381922415,1756410634559,-500.0,0.00019096,2]
[381922416,1756410634569,-937.0,0.00019096,2]
[381922417,1756410634578,-176.00653689,0.00019096,2]
[381922418,1756410634588,-250.0,0.00019096,2]
[381922419,1756410634598,-711.0,0.00019096,2]
[381922420,1756410634608,-150.0,0.00019096,2]
[381922421,1756410634618,-151.0,0.00019178,2]
[381922422,1756410634628,-151.0,0.00019178,2]
[381922423,1756410634640,-151.0,0.00019178,2]
[381922424,1756410634652,-151.0,0.00019178,2]
[381922425,1756410634662,-151.0,0.00019178,2]
[381922426,1756410634674,-151.0,0.00019178,2]
[381922427,1756410634684,-296.925994,0.00019178,2]
[381922428,1756410634694,-287.61899177,0.00019187,2]
[381922429,1756410634704,-1000.0,0.00019312,2]
[381922430,1756410634714,-334.5472959,0.00019358,2]
[381922431,1756410634723,-500.0,0.0001937,2]
[381922432,1756410634733,-551.22254815,0.0001937,2]
[381922433,1756410634743,-500.0,0.0001937,2]
[381922434,1756410634752,-500.0,0.0001937,2]
[381922435,1756410634762,-500.0,0.0001937,2]
[381922436,1756410634775,-937.0,0.0001937,2]
[381922437,1756410634785,-711.0,0.0001937,2]
[381922438,1756410634795,-241.730891,0.0001937,2]
[381922439,1756410634804,-420.0,0.00019457,2]
[381922440,1756410634815,-218.0,0.00019457,2]
[381922441,1756410634824,-1000.0,0.00019521,2]
[381922442,1756410634834,-1680.0,0.00019553,2]
[381922443,1756410634843,-17225.18743222,0.00019567,2]
[381922444,1756410634855,-500.0,0.00019644,2]
[381922445,1756410634864,-500.0,0.00019644,2]
[381922446,1756410634873,-500.0,0.00019644,2]
[381922447,1756410634882,-500.0,0.00019644,2]
[381922448,1756410634891,-937.0,0.00019644,2]
[381922449,1756410634900,-711.0,0.00019644,2]
[381922450,1756410634909,-156.587,0.00019726,2]
[381922451,1756410634918,-309.04,0.00019863,2]
[381922452,1756410634927,-321.52780352,0.00019918,2]
[381922453,1756410634937,-500.0,0.00019918,2]
[381922454,1756410634946,-500.0,0.00019918,2]
[381922455,1756410634955,-500.0,0.00019918,2]
[381922456,1756410634964,-937.0,0.00019918,2]
[381922457,1756410634973,-711.0,0.00019918,2]
[381922458,1756410634983,-151.78,0.0001999,2]
[381922459,1756410634993,-151.78,0.0001999,2]
[381922460,1756410635004,-4000.0,0.0002,4]
[381922461,1756410635013,-362196.2251512,0.0002,5]
[381922462,1756410635022,-151.0,0.0002,2]
[381922463,1756410635030,-151.0,0.0002,2]
[381922464,1756410635039,-1027.61332,0.0002,2]
[381922465,1756410635048,-151.0,0.0002,2]
[381922466,1756410635058,-151.0,0.0002,2]
[381922467,1756410635068,-506.887718,0.0002,2]
[381922468,1756410635078,-203.27582,0.0002,2]
[381922469,1756410635087,-668.96967767,0.00020068,2]
[381922470,1756410635096,-167.84,0.00020187,2]
[381922471,1756410635105,-500.0,0.00020192,2]
[381922472,1756410635115,-500.0,0.00020192,2]
[381922473,1756410635124,-500.0,0.00020192,2]
[381922474,1756410635134,-937.0,0.00020192,2]
[381922475,1756410635143,-711.0,0.00020192,2]
[381922476,1756410635152,-162.380719,0.00020274,2]
[381922477,1756410635161,-500.0,0.00020466,2]
[381922478,1756410635171,-500.0,0.00020466,2]
[381922479,1756410635181,-500.0,0.00020466,2]
[381922480,1756410635190,-937.0,0.00020466,2]
[381922481,1756410635199,-711.0,0.00020466,2]
[381922482,1756410635209,-298.26089446,0.00020556,2]
[381922483,1756410635217,-778.0,0.000206,2]
[381922484,1756410635225,-241.0,0.000206,2]
[381922485,1756410635235,-381.0,0.000206,2]
[381922486,1756410635244,-170.63,0.00020628,2]
[381922487,1756410635253,-346.92554585,0.00020727,2]
[381922488,1756410635262,-453.2656352,0.00020728,2]
[381922489,1756410635275,-500.0,0.0002074,2]
[381922490,1756410635284,-500.0,0.0002074,2]
[381922491,1756410635293,-500.0,0.0002074,2]
[381922492,1756410635302,-937.0,0.0002074,2]
[381922493,1756410635311,-711.0,0.0002074,2]
[381922494,1756410635320,-168.3888056,0.00020822,2]
[381922495,1756410635329,-500.0,0.00021014,2]
[381922496,1756410635339,-523.91294017,0.00021014,2]
[381922497,1756410635347,-500.0,0.00021014,2]
[381922498,1756410635357,-937.0,0.00021014,2]
[381922499,1756410635366,-711.0,0.00021014,2]
[381922500,1756410635380,-587.0,0.00021233,2]
[381922501,1756410635390,-17225.18743222,0.00021233,2]
[381922502,1756410635399,-174.18,0.00021243,2]
[381922503,1756410635408,-500.0,0.00021288,2]
[381922504,1756410635417,-500.0,0.00021288,2]
[381922505,1756410635427,-937.0,0.00021288,2]
[381922506,1756410635436,-711.0,0.00021288,2]
[381922507,1756410635445,-156.36879723,0.00021317,2]
[381922508,1756410635454,-174.61919141,0.0002137,2]
[381922509,1756410635463,-2351.0,0.00021443,2]
[381922510,1756410635472,-1000.0,0.00021457,2]
[381922511,1756410635482,-500.0,0.00021562,2]
[381922512,1756410635491,-500.0,0.00021562,2]
[381922513,1756410635501,-937.0,0.00021562,2]
[381922514,1756410635510,-711.0,0.00021562,2]
[381922515,1756410635520,-600.0,0.00021616,2]
[381922516,1756410635529,-164.0,0.000218,2]
[381922517,1756410635538,-500.0,0.00021836,2]
[381922518,1756410635547,-317.0,0.00021836,2]
[381922519,1756410635557,-937.0,0.00021836,2]
[381922520,1756410635565,-711.0,0.00021836,2]
[381922521,1756410635575,-1000.0,0.00021918,3]
[381922522,1756410635584,-1106.0,0.00021918,3]
[381922523,1756410635593,-5000.0,0.00021918,2]
[381922524,1756410635603,-150.0,0.00021918,2]
[381922525,1756410635612,-150.0,0.00021918,2]
[381922526,1756410635622,-500.0,0.00021918,2]
[381922527,1756410635631,-181.08010149,0.00021918,2]
[381922528,1756410635640,-309.29654756,0.00021925,2]
[381922529,1756410635650,-1672.6,0.00022,7]
[381922530,1756410635660,-1027.61332,0.00022,2]
[381922531,1756410635670,-359.76179104,0.00022096,2]
[381922532,1756410635679,-630.0,0.0002211,2]
[381922533,1756410635688,-937.0,0.0002211,2]
[381922534,1756410635698,-711.0,0.0002211,2]
[381922535,1756410635707,-600.0,0.00022164,2]
[381922536,1756410635716,-600.0,0.00022192,2]
[381922537,1756410635725,-2123.0,0.000222,3]
[381922538,1756410635734,-558.6644433,0.00022206,2]
[381922539,1756410635744,-500.0,0.00022206,2]
[381922540,1756410635753,-174.18,0.00022211,2]
[381922541,1756410635765,-154.7634189,0.00022315,4]
[381922542,1756410635774,-150.0,0.00022315,2]
[381922543,1756410635784,-150.0,0.00022315,2]
[381922544,1756410635793,-150.0,0.00022315,2]
[381922545,1756410635803,-150.0,0.00022315,2]
[381922546,1756410635813,-150.0,0.00022315,2]
[381922547,1756410635822,-150.0,0.00022315,2]
[381922548,1756410635831,-150.0,0.00022315,2]
[381922549,1756410635841,-150.0,0.00022315,2]
[381922550,1756410635852,-150.0,0.00022315,2]
[381922551,1756410635862,-150.0,0.00022315,2]
[381922552,1756410635871,-150.0,0.00022315,2]
[381922553,1756410635880,-150.0,0.00022315,2]
[381922554,1756410635890,-150.0,0.00022315,2]
[381922555,1756410635900,-154.7634189,0.0002234,4]
[381922556,1756410635909,-912.22696637,0.00022353,2]
[381922557,1756410635919,-154.7634189,0.00022365,4]
[381922558,1756410635931,-150.0,0.00022367,4]
[381922559,1756410635941,-150.0,0.00022373,4]
[381922560,1756410635950,-150.0,0.00022379,4]
[381922561,1756410635960,-937.0,0.00022384,2]
[381922562,1756410635969,-711.0,0.00022384,2]
[381922563,1756410635979,-154.7634189,0.0002239,4]
[381922564,1756410635988,-150.0,0.0002239,4]
[381922565,1756410635997,-150.0,0.0002241,4]
[381922566,1756410636006,-154.7634189,0.00022415,4]
[381922567,1756410636015,-150.0,0.00022418,4]
[381922568,1756410636024,-150.0,0.00022418,4]
[381922569,1756410636034,-150.0,0.0002243,4]
[381922570,1756410636043,-154.7634189,0.0002244,4]
[381922571,1756410636053,-150.0,0.00022442,4]
[381922572,1756410636062,-150.0,0.00022453,4]
[381922573,1756410636071,-1416.73,0.00022465,2]
[381922574,1756410636080,-154.7634189,0.00022465,4]
[381922575,1756410636090,-150.0,0.00022465,4]
[381922576,1756410636099,-200.0,0.00022466,2]
[381922577,1756410636108,-250.0,0.00022466,2]
[381922578,1756410636117,-187.78006525,0.00022466,2]
[381922579,1756410636126,-150.0,0.0002247,4]
[381922580,1756410636135,-423.09,0.00022481,2]
[381922581,1756410636144,-150.0,0.00022488,4]
[381922582,1756410636153,-154.7634189,0.0002249,4]
[381922583,1756410636163,-150.0,0.00022506,4]
[381922584,1756410636172,-150.0,0.00022506,4]
[381922585,1756410636182,-154.7634189,0.00022515,4]
[381922586,1756410636192,-150.0,0.00022522,4]
[381922587,1756410636201,-150.0,0.00022522,4]
[381922588,1756410636211,-154.7634189,0.0002254,4]
[381922589,1756410636220,-150.0,0.0002254,4]
[381922590,1756410636230,-150.0,0.00022546,4]
[381922591,1756410636239,-1177.49,0.00022562,2]
[381922592,1756410636249,-154.7634189,0.00022566,4]
[381922593,1756410636258,-150.0,0.00022569,4]
[381922594,1756410636270,-150.0,0.00022573,4]
[381922595,1756410636279,-154.7634189,0.00022591,4]
[381922596,1756410636288,-150.0,0.00022591,4]
[381922597,1756410636297,-500.97961208,0.00022599,2]
[381922598,1756410636307,-150.0,0.00022601,4]
[381922599,1756410636316,-309.04,0.00022603,2]
[381922600,1756410636325,-150.0,0.00022603,4]
[381922601,1756410636334,-154.7634189,0.00022616,4]
[381922602,1756410636343,-150.0,0.00022616,4]
[381922603,1756410636352,-409.82097998,0.00022616,2]
[381922604,1756410636361,-160.0,0.00022622,2]
[381922605,1756410636370,-150.0,0.00022625,4]
[381922606,1756410636379,-150.0,0.00022625,4]
[381922607,1756410636388,-150.0,0.00022625,4]
[381922608,1756410636398,-150.0,0.00022633,4]
[381922609,1756410636407,-154.7634189,0.00022641,4]
[381922610,1756410636417,-500.0,0.00022644,2]
[381922611,1756410636427,-937.0,0.00022658,2]
[381922612,1756410636436,-711.0,0.00022658,2]
[381922613,1756410636445,-150.0,0.00022661,4]
[381922614,1756410636455,-154.7634189,0.00022666,4]
[381922615,1756410636464,-150.0,0.00022677,4]
[381922616,1756410636473,-154.7634189,0.00022691,4]
[381922617,1756410636482,-150.0,0.00022691,4]
[381922618,1756410636492,-150.0,0.00022697,4]
[381922619,1756410636501,-150.0,0.00022697,4]
[381922620,1756410636510,-5511.0,0.000227,5]
[381922621,1756410636522,-600.0,0.00022712,2]
[381922622,1756410636531,-154.7634189,0.00022716,4]
[381922623,1756410636541,-150.0,0.00022719,4]
[381922624,1756410636552,-150.0,0.00022728,4]
[381922625,1756410636561,-150.0,0.00022728,4]
[381922626,1756410636570,-150.0,0.00022728,4]
[381922627,1756410636581,-150.0,0.00022728,4]
[381922628,1756410636590,-154.7634189,0.00022741,4]
[381922629,1756410636600,-150.0,0.0002276,4]
[381922630,1756410636610,-154.7634189,0.00022766,4]
[381922631,1756410636620,-150.0,0.00022766,4]
[381922632,1756410636631,-150.0,0.00022776,4]
[381922633,1756410636641,-150.0,0.0002278,4]
[381922634,1756410636649,-154.7634189,0.00022791,4]
[381922635,1756410636658,-150.0,0.00022792,4]
[381922636,1756410636667,-154.7634189,0.00022816,4]
[381922637,1756410636675,-150.0,0.00022824,4]
[381922638,1756410636684,-150.0,0.00022832,4]
[381922639,1756410636693,-150.0,0.00022832,4]
[381922640,1756410636702,-150.0,0.00022834,4]
[381922641,1756410636711,-154.7634189,0.00022841,4]
[381922642,1756410636721,-150.0,0.00022841,4]
[381922643,1756410636729,-154.7634189,0.00022866,4]
[381922644,1756410636738,-150.0,0.00022866,4]
[381922645,1756410636747,-150.0,0.00022883,4]
[381922646,1756410636756,-150.0,0.00022887,4]
[381922647,1756410636770,-150.0,0.00022887,4]
[381922648,1756410636779,-151.78,0.0002289,2]
[381922649,1756410636789,-154.7634189,0.00022891,4]
[381922650,1756410636800,-150.0,0.00022892,4]
[381922651,1756410636810,-323.0,0.000229,2]
[381922652,1756410636819,-17225.18743222,0.000229,2]
[381922653,1756410636829,-154.7634189,0.00022916,4]
[381922654,1756410636838,-150.0,0.00022916,4]
[381922655,1756410636851,-937.0,0.00022932,2]
[381922656,1756410636861,-711.0,0.00022932,2]
[381922657,1756410636870,-150.0,0.00022935,4]
[381922658,1756410636880,-150.0,0.00022935,4]
[381922659,1756410636890,-150.0,0.00022935,4]
[381922660,1756410636900,-154.7634189,0.00022941,4]
[381922661,1756410636909,-150.0,0.00022949,4]
[381922662,1756410636919,-150.0,0.00022951,4]
[381922663,1756410636929,-154.7634189,0.00022966,4]
[381922664,1756410636940,-150.0,0.00022983,4]
[381922665,1756410636951,-150.0,0.00022987,4]
[381922666,1756410636960,-154.7634189,0.00022991,4]
[381922667,1756410636968,-150.0,0.00022991,4]
[381922668,1756410636976,-150.0,0.00023004,4]
[381922669,1756410636985,-150.0,0.00023007,4]
[381922670,1756410636993,-200.0,0.00023014,2]
[381922671,1756410637002,-194.72792766,0.00023014,2]
[381922672,1756410637011,-150.0,0.00023014,4]
[381922673,1756410637021,-154.7634189,0.00023016,4]
[381922674,1756410637029,-150.0,0.00023038,4]
[381922675,1756410637038,-150.0,0.00023038,4]
[381922676,1756410637047,-154.7634189,0.00023041,4]
[381922677,1756410637056,-150.0,0.00023065,4]
[381922678,1756410637066,-154.7634189,0.00023066,4]
[381922679,1756410637074,-150.0,0.00023066,4]
[381922680,1756410637083,-150.0,0.00023078,4]
[381922681,1756410637092,-150.0,0.00023078,4]
[381922682,1756410637101,-150.0,0.0002309,4]
[381922683,1756410637110,-154.7634189,0.00023091,4]
[381922684,1756410637119,-612.2,0.000231,2]
[381922685,1756410637128,-154.7634189,0.00023117,4]
[381922686,1756410637138,-150.0,0.00023122,4]
[381922687,1756410637147,-154.7634189,0.00023142,4]
[381922688,1756410637155,-150.0,0.00023142,4]
[381922689,1756410637164,-150.0,0.00023142,4]
[381922690,1756410637174,-150.0,0.00023142,4]
[381922691,1756410637183,-150.0,0.00023142,4]
[381922692,1756410637192,-150.0,0.00023142,4]
[381922693,1756410637201,-150.0,0.00023142,4]
[381922694,1756410637210,-150.0,0.00023142,4]
[381922695,1756410637219,-154.7634189,0.00023167,4]
[381922696,1756410637228,-823.0,0.00023172,2]
[381922697,1756410637237,-150.0,0.00023173,4]
[381922698,1756410637246,-150.0,0.0002318,4]
[381922699,1756410637255,-154.7634189,0.00023192,4]
[381922700,1756410637265,-150.0,0.00023193,4]
[381922701,1756410637274,-150.0,0.00023205,4]
[381922702,1756410637283,-937.0,0.00023205,2]
[381922703,1756410637291,-711.0,0.00023205,2]
[381922704,1756410637301,-154.7634189,0.00023217,4]
[381922705,1756410637310,-150.0,0.00023217,4]
[381922706,1756410637319,-240.98507258,0.00023233,2]
[381922707,1756410637328,-150.0,0.00023238,4]
[381922708,1756410637337,-154.7634189,0.00023242,4]
[381922709,1756410637347,-150.0,0.00023245,4]
[381922710,1756410637356,-150.0,0.00023245,4]
[381922711,1756410637364,-150.0,0.00023245,4]
[381922712,1756410637374,-600.0,0.0002326,2]
[381922713,1756410637383,-154.7634189,0.00023267,4]
[381922714,1756410637392,-150.0,0.00023269,4]
[381922715,1756410637401,-150.0,0.00023269,4]
[381922716,1756410637410,-232.24,0.00023272,2]
[381922717,1756410637420,-150.0,0.00023279,4]
[381922718,1756410637428,-154.7634189,0.00023292,4]
[381922719,1756410637437,-150.0,0.00023292,4]
[381922720,1756410637446,-320.74051982,0.00023294,2]
[381922721,1756410637455,-150.0,0.00023295,4]
[381922722,1756410637464,-150.0,0.00023297,4]
[381922723,1756410637473,-154.7634189,0.00023317,4]
[381922724,1756410637482,-150.0,0.00023332,4]
[381922725,1756410637491,-154.7634189,0.00023342,4]
[381922726,1756410637501,-150.0,0.00023348,4]
[381922727,1756410637510,-150.0,0.00023348,4]
[381922728,1756410637520,-150.0,0.00023353,4]
[381922729,1756410637529,-150.0,0.00023364,4]
[381922730,1756410637538,-154.7634189,0.00023367,4]
[381922731,1756410637546,-150.0,0.00023367,4]
[381922732,1756410637554,-154.7634189,0.00023392,4]
[381922734,1756410637563,-150.0,0.00023396,4]
[381922735,1756410637573,-150.0,0.000234,4]
[381922736,1756410637582,-150.0,0.00023411,4]
[381922737,1756410637591,-154.7634189,0.00023417,4]
[381922738,1756410637601,-150.0,0.00023417,4]
[381922739,1756410637610,-154.7634189,0.00023442,4]
[381922741,1756410637620,-150.0,0.00023442,4]
[381922743,1756410637629,-150.0,0.00023451,4]
[381922744,1756410637638,-150.0,0.00023451,4]
[381922745,1756410637648,-150.0,0.00023459,4]
[381922746,1756410637657,-150.0,0.00023459,4]
[381922747,1756410637666,-373.07297731,0.00023465,2]
[381922748,1756410637676,-154.7634189,0.00023467,4]
[381922749,1756410637686,-150.0,0.00023468,4]
[381922750,1756410637696,-937.0,0.00023479,2]
[381922751,1756410637705,-711.0,0.00023479,2]
[381922752,1756410637857,-154.7634189,0.00023492,4]
[381922753,1756410637867,-150.0,0.00023503,4]
[381922754,1756410637877,-2357.0,0.00023516,2]
[381922755,1756410637887,-154.7634189,0.00023517,4]
[381922756,1756410637898,-150.0,0.00023517,4]
[381922757,1756410637908,-150.0,0.00023523,4]
[381922758,1756410637917,-150.0,0.00023526,4]
[381922759,1756410637927,-154.7634189,0.00023542,4]
[381922760,1756410637936,-150.0,0.00023555,4]
[381922761,1756410637945,-150.0,0.00023555,4]
[381922762,1756410637954,-150.0,0.00023555,4]
[381922763,1756410637963,-150.0,0.00023555,4]
[381922764,1756410637972,-150.0,0.00023555,4]
[381922765,1756410637982,-150.0,0.00023555,4]
[381922766,1756410637991,-150.0,0.00023555,4]
[381922767,1756410638000,-233.29028782,0.00023562,2]
[381922768,1756410638011,-154.7634189,0.00023567,4]
[381922769,1756410638021,-150.0,0.00023584,4]
[381922770,1756410638031,-150.0,0.00023587,4]
[381922771,1756410638040,-154.7634189,0.00023592,4]
[381922772,1756410638049,-150.0,0.00023592,4]
[381922773,1756410638059,-1000.0,0.00023603,2]
[381922774,1756410638068,-150.0,0.00023606,4]
[381922775,1756410638077,-154.7634189,0.00023617,4]
[381922776,1756410638086,-150.0,0.00023641,4]
[381922777,1756410638095,-154.7634189,0.00023642,4]
[381922778,1756410638105,-150.0,0.0002365,4]
[381922779,1756410638115,-150.0,0.0002365,4]
[381922780,1756410638124,-150.0,0.00023658,4]
[381922781,1756410638135,-150.0,0.00023658,4]
[381922782,1756410638144,-154.7634189,0.00023667,4]
[381922783,1756410638153,-150.0,0.00023667,4]
[381922784,1756410638163,-154.7634189,0.00023693,4]
[381922785,1756410638172,-150.0,0.00023693,4]
[381922786,1756410638183,-150.0,0.00023699,4]
[381922787,1756410638194,-150.0,0.0002371,4]
[381922789,1756410638203,-150.0,0.00023714,4]
[381922791,1756410638212,-154.7634189,0.00023718,4]
[381922793,1756410638221,-339.29,0.00023726,2]
[381922795,1756410638231,-154.7634189,0.00023743,4]
[381922797,1756410638241,-150.0,0.00023743,4]
[381922799,1756410638250,-150.0,0.00023746,4]
[381922801,1756410638260,-937.0,0.00023753,2]
[381922803,1756410638270,-711.0,0.00023753,2]
[381922806,1756410638280,-150.0,0.00023757,4]
[381922809,1756410638289,-150.0,0.00023761,4]
[381922811,1756410638299,-150.0,0.00023761,4]
[381922813,1756410638308,-154.7634189,0.00023768,4]
[381922815,1756410638318,-150.0,0.00023777,4]
[381922817,1756410638327,-154.7634189,0.00023793,4]
[381922819,1756410638336,-600.0,0.00023808,2]
[381922821,1756410638346,-150.0,0.00023813,4]
[381922823,1756410638356,-150.0,0.00023814,4]
[381922825,1756410638365,-154.7634189,0.00023818,4]
[381922827,1756410638374,-150.0,0.00023818,4]
[381922829,1756410638384,-150.0,0.0002383,4]
[381922831,1756410638393,-150.0,0.00023841,4]
[381922833,1756410638402,-150.0,0.00023841,4]
[381922835,1756410638417,-154.7634189,0.00023843,4]
[381922837,1756410638426,-150.0,0.00023865,4]
[381922839,1756410638436,-150.0,0.00023865,4]
[381922841,1756410638445,-150.0,0.00023865,4]
[381922843,1756410638455,-154.7634189,0.00023868,4]
[381922844,1756410638464,-150.0,0.00023872,4]
[381922845,1756410638473,-154.7634189,0.00023893,4]
[381922846,1756410638483,-150.0,0.00023893,4]
[381922847,1756410638492,-150.0,0.00023904,4]
[381922848,1756410638501,-150.0,0.00023916,4]
[381922849,1756410638511,-154.7634189,0.00023918,4]
[381922850,1756410638521,-150.0,0.0002393,4]
[381922851,1756410638531,-150.0,0.00023936,4]
[381922852,1756410638540,-154.7634189,0.00023943,4]
[381922853,1756410638550,-154.7634189,0.00023968,4]
[381922854,1756410638559,-150.0,0.00023968,4]
[381922855,1756410638569,-150.0,0.00023968,4]
[381922856,1756410638579,-150.0,0.00023968,4]
[381922858,1756410638588,-150.0,0.00023968,4]
[381922860,1756410638597,-150.0,0.00023968,4]
[381922862,1756410638607,-150.0,0.00023968,4]
[381922864,1756410638616,-150.0,0.00023968,4]
[381922866,1756410638626,-150.0,0.00023987,4]
[381922868,1756410638635,-154.7634189,0.00023993,4]
[381922870,1756410638645,-60635.73637475,0.00024,2]
[381922872,1756410638654,-999.27935289,0.00024,2]
[381922874,1756410638663,-1524.77481024,0.00024,2]
[381922876,1756410638672,-50429.79641453,0.00024,2]
[381922878,1756410638682,-270.95856784,0.00024,2]
[381922880,1756410638692,-2148.09355148,0.00024,2]
[381922882,1756410638701,-1027.61332,0.00024,2]
[381922884,1756410638711,-423.09,0.00024,2]
[381922886,1756410638721,-316.0,0.0002401,2]
[381922888,1756410638731,-154.7634189,0.00024018,4]
[381922890,1756410638741,-150.0,0.0002402,4]
[381922892,1756410638751,-937.0,0.00024027,2]
[381922894,1756410638760,-711.0,0.00024027,2]
[381922896,1756410638770,-150.0,0.00024032,4]
[381922898,1756410638779,-150.0,0.00024032,4]
[381922900,1756410638789,-154.7634189,0.00024043,4]
[381922902,1756410638798,-150.0,0.00024043,4]
[381922904,1756410638808,-150.0,0.00024045,4]
[381922906,1756410638817,-154.7634189,0.00024068,4]
[381922908,1756410638827,-150.0,0.00024071,4]
[381922910,1756410638836,-150.0,0.00024071,4]
[381922913,1756410638846,-154.7634189,0.00024093,4]
[381922915,1756410638859,-150.0,0.00024095,4]
[381922917,1756410638873,-5275.32435963,0.000241,2]
[381922919,1756410638882,-150.0,0.00024103,4]
[381922921,1756410638892,-150.0,0.00024106,4]
[381922923,1756410638902,-154.7634189,0.00024118,4]
[381922925,1756410638911,-150.0,0.00024118,4]
[381922927,1756410638920,-150.0,0.00024123,4]
[381922929,1756410638931,-150.0,0.00024127,4]
[381922931,1756410638941,-154.7634189,0.00024143,4]
[381922933,1756410638951,-150.0,0.00024159,4]
[381922935,1756410638960,-150.0,0.0002416,4]
[381922937,1756410638969,-154.7634189,0.00024168,4]
[381922939,1756410638979,-150.0,0.00024175,4]
[381922941,1756410638988,-150.0,0.00024175,4]
[381922943,1756410638998,-150.0,0.00024175,4]
[381922945,1756410639008,-154.7634189,0.00024193,4]
[381922947,1756410639017,-150.0,0.00024193,4]
[381922949,1756410639027,-413.07259819,0.0002421,2]
[381922951,1756410639037,-3618.56881285,0.0002421,2]
[381922954,1756410639047,-150.0,0.00024218,4]
[381922955,1756410639057,-154.7634189,0.00024218,4]
[381922957,1756410639066,-150.0,0.00024222,4]
[381922959,1756410639076,-150.0,0.00024222,4]
[381922961,1756410639085,-150.0,0.00024226,4]
[381922963,1756410639096,-154.7634189,0.00024244,4]
[381922965,1756410639106,-150.0,0.00024244,4]
[381922967,1756410639116,-154.7634189,0.00024269,4]
[381922969,1756410639126,-150.0,0.00024269,4]